[Event "*** Titled Tuesday Blitz"]
[Site "Chess.com"]
[Date "2020.05.05"]
[Round "3"]
[White "evgenyermolaev"]
[Black "Dedic8"]
[Result "1-0"]
[WhiteElo "2598"]
[BlackElo "2766"]
[TimeControl "180+1"]
[EndTime "10:29:02 PDT"]
[Termination "evgenyermolaev won on time"]

1. e4 {[%clk 0:03:00.9]} 1... e5 {[%clk 0:02:59.8]} 2. Nf3 {[%clk 0:02:58]} 2...
Nc6 {[%clk 0:03:00.3]} 3. Bc4 {[%clk 0:02:57.5]} 3... Nf6 {[%clk 0:02:59.3]} 4.
O-O {[%clk 0:02:54]} 4... h6 {[%clk 0:02:54.5]} 5. d4 {[%clk 0:02:38.7]} 5...
exd4 {[%clk 0:02:54.6]} 6. e5 {[%clk 0:02:38.3]} 6... d5 {[%clk 0:02:55.2]} 7.
Bb5 {[%clk 0:02:34.3]} 7... Ne4 {[%clk 0:02:54.8]} 8. Nxd4 {[%clk 0:02:32.4]}
8... Bd7 {[%clk 0:02:54.7]} 9. e6 {[%clk 0:02:09.8]} 9... fxe6 {[%clk
0:02:52.1]} 10. Qh5+ {[%clk 0:02:03.7]} 10... Ke7 {[%clk 0:02:52.4]} 11. Bxc6
{[%clk 0:01:57.2]} 11... bxc6 {[%clk 0:02:51]} 12. Nc3 {[%clk 0:01:52.4]} 12...
Nxc3 {[%clk 0:01:56]} 13. bxc3 {[%clk 0:01:49.8]} 13... Qe8 {[%clk 0:01:56.7]}
14. Bg5+ {[%clk 0:01:34.1]} 14... hxg5 {[%clk 0:01:45.6]} 15. Qxh8 {[%clk
0:01:32.5]} 15... c5 {[%clk 0:01:19.9]} 16. Nf5+ {[%clk 0:01:03.7]} 16... Kf6
{[%clk 0:00:35.6]} 17. Ng3 {[%clk 0:00:59.7]} 17... e5 {[%clk 0:00:36.2]} 18.
Rae1 {[%clk 0:00:41.1]} 18... Rc8 {[%clk 0:00:21]} 19. f4 {[%clk 0:00:40.6]}
19... gxf4 {[%clk 0:00:07.5]} 20. Nh5+ {[%clk 0:00:37.5]} 20... Ke6 {[%clk
0:00:05.6]} 21. Nxf4+ {[%clk 0:00:17.6]} 21... Kd6 {[%clk 0:00:05.8]} 22. Nd3
{[%clk 0:00:18.3]} 22... e4 {[%clk 0:00:04.5]} 23. Qh4 {[%clk 0:00:17]} 1-0

[Event "*** Titled Tuesday Blitz"]
[Site "Chess.com"]
[Date "2020.05.05"]
[Round "3"]
[White "marszach123"]
[Black "SaqoChess_Twitch"]
[Result "0-1"]
[WhiteElo "2141"]
[BlackElo "2407"]
[TimeControl "180+1"]
[EndTime "10:29:02 PDT"]
[Termination "SaqoChess_Twitch won on time"]

1. e4 {[%clk 0:03:00.9]} 1... c5 {[%clk 0:02:59.3]} 2. Nf3 {[%clk 0:03:00.8]}
2... d6 {[%clk 0:02:57.2]} 3. d4 {[%clk 0:03:01.1]} 3... cxd4 {[%clk 0:02:58.1]}
4. Nxd4 {[%clk 0:03:01.6]} 4... Nf6 {[%clk 0:02:58.8]} 5. Nc3 {[%clk 0:03:02]}
5... g6 {[%clk 0:02:59.4]} 6. Be3 {[%clk 0:03:01.8]} 6... Bg7 {[%clk 0:03:00]}
7. f3 {[%clk 0:03:02]} 7... O-O {[%clk 0:03:00.4]} 8. Qd2 {[%clk 0:03:02.4]}
8... Nc6 {[%clk 0:03:01.1]} 9. O-O-O {[%clk 0:03:02.8]} 9... d5 {[%clk
0:03:00.9]} 10. Qe1 {[%clk 0:03:03]} 10... e5 {[%clk 0:03:00.6]} 11. Nxc6 {[%clk
0:03:02.5]} 11... bxc6 {[%clk 0:03:01.5]} 12. exd5 {[%clk 0:03:02.9]} 12... Nxd5
{[%clk 0:03:02.4]} 13. Bc4 {[%clk 0:03:01.3]} 13... Be6 {[%clk 0:03:02.5]} 14.
Kb1 {[%clk 0:03:00.9]} 14... e4 {[%clk 0:02:47.7]} 15. Nxe4 {[%clk 0:02:10.5]}
15... Qb8 {[%clk 0:02:45.8]} 16. Bd4 {[%clk 0:01:58.1]} 16... Bxd4 {[%clk
0:02:26.2]} 17. Rxd4 {[%clk 0:01:58.1]} 17... Qe5 {[%clk 0:02:26.5]} 18. Rd1
{[%clk 0:01:39.6]} 18... Rfb8 {[%clk 0:02:17.2]} 19. Bb3 {[%clk 0:01:37.8]}
19... a5 {[%clk 0:02:15.2]} 20. Nc5 {[%clk 0:01:34.4]} 20... Qf6 {[%clk
0:02:06.5]} 21. Nxe6 {[%clk 0:00:49.9]} 21... fxe6 {[%clk 0:02:04.2]} 22. c4
{[%clk 0:00:39.9]} 22... a4 {[%clk 0:01:45.5]} 23. cxd5 {[%clk 0:00:38.5]} 23...
cxd5 {[%clk 0:01:43.3]} 24. Qc3 {[%clk 0:00:21.6]} 24... Qxc3 {[%clk 0:01:38.4]}
25. bxc3 {[%clk 0:00:21.9]} 25... axb3 {[%clk 0:01:39.3]} 26. axb3 {[%clk
0:00:21.1]} 26... Rxb3+ {[%clk 0:01:40.2]} 27. Kc2 {[%clk 0:00:21.3]} 27... Rba3
{[%clk 0:01:29.5]} 28. Rb1 {[%clk 0:00:18.3]} 28... Rc8 {[%clk 0:01:24.4]} 29.
Rb3 {[%clk 0:00:17.8]} 29... Ra2+ {[%clk 0:01:24.5]} 30. Rb2 {[%clk 0:00:17.6]}
30... Ra4 {[%clk 0:01:25]} 31. Kd3 {[%clk 0:00:12.7]} 31... Rac4 {[%clk
0:01:20.8]} 32. Rb3 {[%clk 0:00:11]} 32... Kf7 {[%clk 0:01:17.8]} 33. Ra1 {[%clk
0:00:10.6]} 33... Kf6 {[%clk 0:01:17.4]} 34. Ra7 {[%clk 0:00:10]} 34... h5
{[%clk 0:01:17.2]} 35. h4 {[%clk 0:00:07.4]} 35... Rxh4 {[%clk 0:01:15.5]} 36.
Ra6 {[%clk 0:00:06.1]} 36... Rhc4 {[%clk 0:01:13.7]} 37. Kd2 {[%clk 0:00:04.7]}
37... Kf5 {[%clk 0:01:11.8]} 38. Rbb6 {[%clk 0:00:03.4]} 38... Re8 {[%clk
0:01:06.3]} 39. Kd3 {[%clk 0:00:02.6]} 39... h4 {[%clk 0:01:04.9]} 40. Rd6
{[%clk 0:00:01.9]} 40... g5 {[%clk 0:01:05.2]} 41. Rdb6 {[%clk 0:00:01.3]} 41...
g4 {[%clk 0:01:05.4]} 0-1

[Event "*** Titled Tuesday Blitz"]
[Site "Chess.com"]
[Date "2020.05.05"]
[Round "3"]
[White "jlandaw"]
[Black "Chessalary"]
[Result "1-0"]
[WhiteElo "2381"]
[BlackElo "2162"]
[TimeControl "180+1"]
[EndTime "10:29:02 PDT"]
[Termination "jlandaw won by resignation"]

1. e4 {[%clk 0:03:00.9]} 1... c5 {[%clk 0:02:59.7]} 2. Nc3 {[%clk 0:03:01]} 2...
d6 {[%clk 0:02:59.7]} 3. g3 {[%clk 0:03:01.3]} 3... Nf6 {[%clk 0:02:57]} 4. Bg2
{[%clk 0:03:01.2]} 4... g6 {[%clk 0:02:57.4]} 5. d3 {[%clk 0:03:01.2]} 5... Bg7
{[%clk 0:02:57.7]} 6. f4 {[%clk 0:03:01.3]} 6... O-O {[%clk 0:02:56.1]} 7. Nf3
{[%clk 0:03:01.4]} 7... Nc6 {[%clk 0:02:54.3]} 8. O-O {[%clk 0:03:01.3]} 8...
Rb8 {[%clk 0:02:53.5]} 9. a3 {[%clk 0:03:00.7]} 9... b5 {[%clk 0:02:53.3]} 10.
Rb1 {[%clk 0:03:00.9]} 10... a5 {[%clk 0:02:51.4]} 11. a4 {[%clk 0:03:01]} 11...
bxa4 {[%clk 0:02:49.3]} 12. Nxa4 {[%clk 0:03:01]} 12... Nd4 {[%clk 0:02:33.9]}
13. Nxd4 {[%clk 0:02:38.7]} 13... cxd4 {[%clk 0:02:34.8]} 14. b3 {[%clk
0:02:38.6]} 14... e5 {[%clk 0:02:33.1]} 15. Bd2 {[%clk 0:02:35]} 15... Bd7
{[%clk 0:02:12.1]} 16. Nb2 {[%clk 0:02:29.1]} 16... Bb5 {[%clk 0:01:34.8]} 17.
Ra1 {[%clk 0:02:28.4]} 17... Ra8 {[%clk 0:01:35.2]} 18. f5 {[%clk 0:01:06.9]}
18... Qc7 {[%clk 0:01:27.3]} 19. g4 {[%clk 0:00:55.4]} 19... Nd7 {[%clk
0:01:21.2]} 20. g5 {[%clk 0:00:47.7]} 20... f6 {[%clk 0:01:21.2]} 21. fxg6
{[%clk 0:00:46]} 21... hxg6 {[%clk 0:01:21]} 22. Nc4 {[%clk 0:00:44.2]} 22...
Bxc4 {[%clk 0:01:20.4]} 23. dxc4 {[%clk 0:00:44.2]} 23... Ra7 {[%clk 0:01:07.2]}
24. Qg4 {[%clk 0:00:43.2]} 24... Qc5 {[%clk 0:00:38.3]} 25. Kh1 {[%clk
0:00:37.4]} 25... f5 {[%clk 0:00:18.3]} 26. exf5 {[%clk 0:00:36.2]} 26... gxf5
{[%clk 0:00:19.2]} 27. Rxf5 {[%clk 0:00:31.9]} 27... Rxf5 {[%clk 0:00:18.3]} 28.
Qxf5 {[%clk 0:00:31.4]} 28... Nb6 {[%clk 0:00:13.5]} 29. Qe6+ {[%clk 0:00:21.9]}
29... Rf7 {[%clk 0:00:11.6]} 30. g6 {[%clk 0:00:20.1]} 1-0

[Event "*** Titled Tuesday Blitz"]
[Site "Chess.com"]
[Date "2020.05.05"]
[Round "3"]
[White "ViktoriyaTarasova"]
[Black "Aureliano-Buendia"]
[Result "0-1"]
[WhiteElo "2174"]
[BlackElo "2389"]
[TimeControl "180+1"]
[EndTime "10:29:04 PDT"]
[Termination "Aureliano-Buendia won by resignation"]

1. d4 {[%clk 0:02:53]} 1... d5 {[%clk 0:02:59.2]} 2. c4 {[%clk 0:02:52.4]} 2...
c6 {[%clk 0:02:54.9]} 3. Nf3 {[%clk 0:02:51.9]} 3... Nf6 {[%clk 0:02:55]} 4. Nc3
{[%clk 0:02:51.7]} 4... dxc4 {[%clk 0:02:55.1]} 5. a4 {[%clk 0:02:51.5]} 5... e6
{[%clk 0:02:55.4]} 6. e3 {[%clk 0:02:49.2]} 6... c5 {[%clk 0:02:55.6]} 7. Bxc4
{[%clk 0:02:47.3]} 7... Nc6 {[%clk 0:02:56.3]} 8. O-O {[%clk 0:02:45.8]} 8...
Be7 {[%clk 0:02:56.4]} 9. Qe2 {[%clk 0:02:45]} 9... cxd4 {[%clk 0:02:56.9]} 10.
Rd1 {[%clk 0:02:45.5]} 10... O-O {[%clk 0:02:56.4]} 11. Nxd4 {[%clk 0:02:44.1]}
11... Nxd4 {[%clk 0:02:56.8]} 12. exd4 {[%clk 0:02:44.7]} 12... Qa5 {[%clk
0:02:23.1]} 13. d5 {[%clk 0:02:28.6]} 13... Bb4 {[%clk 0:02:16.1]} 14. dxe6
{[%clk 0:02:23.1]} 14... Bxe6 {[%clk 0:02:14.7]} 15. Bxe6 {[%clk 0:02:22.8]}
15... Rae8 {[%clk 0:02:12.8]} 16. Bxf7+ {[%clk 0:02:06.6]} 16... Rxf7 {[%clk
0:02:12.1]} 17. Qc2 {[%clk 0:02:07.1]} 17... Bxc3 {[%clk 0:02:05.8]} 18. bxc3
{[%clk 0:02:05.5]} 18... Ng4 {[%clk 0:01:54.1]} 19. Rf1 {[%clk 0:01:15.3]} 19...
Qa6 {[%clk 0:01:52.8]} 20. Be3 {[%clk 0:01:00.9]} 20... Rxe3 {[%clk 0:01:44.7]}
21. fxe3 {[%clk 0:00:52.2]} 21... Rxf1+ {[%clk 0:01:43.9]} 22. Rxf1 {[%clk
0:00:51]} 22... Qxf1+ {[%clk 0:01:44.3]} 23. Kxf1 {[%clk 0:00:47.8]} 23... Nxe3+
{[%clk 0:01:44.3]} 24. Ke2 {[%clk 0:00:47.5]} 24... Nxc2 {[%clk 0:01:45.2]} 25.
Kd2 {[%clk 0:00:46.2]} 25... Na1 {[%clk 0:01:38.6]} 26. Kd3 {[%clk 0:00:39.4]}
26... Nb3 {[%clk 0:01:37.1]} 27. Kc4 {[%clk 0:00:39]} 27... Na5+ {[%clk
0:01:35.8]} 28. Kd5 {[%clk 0:00:39.4]} 28... b6 {[%clk 0:01:24.4]} 29. Kd6
{[%clk 0:00:39]} 29... Nc4+ {[%clk 0:01:20.2]} 30. Kc7 {[%clk 0:00:38.8]} 30...
Nb2 {[%clk 0:01:20.3]} 31. Kb7 {[%clk 0:00:37.9]} 31... Nxa4 {[%clk 0:01:20.4]}
32. Kxa7 {[%clk 0:00:36.8]} 32... b5 {[%clk 0:01:18.9]} 33. Ka6 {[%clk
0:00:36.2]} 33... Nxc3 {[%clk 0:01:18.4]} 34. Ka5 {[%clk 0:00:36.6]} 34... g5
{[%clk 0:01:16.6]} 35. Kb4 {[%clk 0:00:37.2]} 35... Nd5+ {[%clk 0:01:16.9]} 36.
Kxb5 {[%clk 0:00:37.5]} 36... Ne3 {[%clk 0:01:17.3]} 37. g3 {[%clk 0:00:35.5]}
37... Nf1 {[%clk 0:01:17.7]} 38. Kc4 {[%clk 0:00:31.6]} 38... Nxh2 {[%clk
0:01:17.5]} 39. Kd5 {[%clk 0:00:32.2]} 39... Nf1 {[%clk 0:01:17.3]} 40. g4
{[%clk 0:00:31.9]} 40... Ne3+ {[%clk 0:01:17]} 41. Ke5 {[%clk 0:00:32.8]} 41...
Nxg4+ {[%clk 0:01:17.1]} 42. Kf5 {[%clk 0:00:33.7]} 42... Nh6+ {[%clk
0:01:14.1]} 43. Kxg5 {[%clk 0:00:33.6]} 43... Kg7 {[%clk 0:01:14.6]} 44. Kh5
{[%clk 0:00:33.3]} 44... Nf7 {[%clk 0:01:14.7]} 45. Kh4 {[%clk 0:00:32.9]} 45...
Kg6 {[%clk 0:01:15.6]} 46. Kh3 {[%clk 0:00:32.9]} 46... h5 {[%clk 0:01:16.5]}
47. Kh4 {[%clk 0:00:32.7]} 47... Kh6 {[%clk 0:01:17.1]} 48. Kh3 {[%clk
0:00:32.7]} 48... Kg5 {[%clk 0:01:18]} 49. Kg3 {[%clk 0:00:32.4]} 49... h4+
{[%clk 0:01:18.9]} 50. Kh3 {[%clk 0:00:32.9]} 50... Kh5 {[%clk 0:01:19.2]} 51.
Kh2 {[%clk 0:00:32.8]} 51... Kg4 {[%clk 0:01:20.1]} 52. Kg2 {[%clk 0:00:33.5]}
52... h3+ {[%clk 0:01:20.7]} 53. Kh2 {[%clk 0:00:34]} 53... Ng5 {[%clk
0:01:20.9]} 54. Kh1 {[%clk 0:00:34.5]} 54... Kg3 {[%clk 0:01:21.4]} 55. Kg1
{[%clk 0:00:34.6]} 55... Ne4 {[%clk 0:01:20.6]} 56. Kh1 {[%clk 0:00:34.7]} 56...
Nf2+ {[%clk 0:01:20.2]} 0-1

[Event "*** Titled Tuesday Blitz"]
[Site "Chess.com"]
[Date "2020.05.05"]
[Round "3"]
[White "NormWeinstein"]
[Black "Anuar_Is"]
[Result "0-1"]
[WhiteElo "2443"]
[BlackElo "2775"]
[TimeControl "180+1"]
[EndTime "10:29:05 PDT"]
[Termination "Anuar_Is won on time"]

1. e4 {[%clk 0:03:00.9]} 1... c5 {[%clk 0:02:59.6]} 2. Nf3 {[%clk 0:03:00.8]}
2... Nc6 {[%clk 0:02:59.3]} 3. Nc3 {[%clk 0:03:00.6]} 3... Nf6 {[%clk
0:02:58.8]} 4. e5 {[%clk 0:02:59.5]} 4... Ng4 {[%clk 0:02:58.6]} 5. Qe2 {[%clk
0:03:00]} 5... d6 {[%clk 0:02:58.7]} 6. exd6 {[%clk 0:02:58.9]} 6... e6 {[%clk
0:02:59.2]} 7. g3 {[%clk 0:02:58.6]} 7... Bxd6 {[%clk 0:02:58.4]} 8. Bg2 {[%clk
0:02:58.4]} 8... O-O {[%clk 0:02:58.5]} 9. O-O {[%clk 0:02:58.2]} 9... e5 {[%clk
0:02:58]} 10. d3 {[%clk 0:02:57.8]} 10... f5 {[%clk 0:02:43.2]} 11. Bg5 {[%clk
0:02:43.8]} 11... Qe8 {[%clk 0:02:38.7]} 12. h3 {[%clk 0:02:41.2]} 12... Nf6
{[%clk 0:02:38.1]} 13. Bxf6 {[%clk 0:02:34.1]} 13... Rxf6 {[%clk 0:02:37.1]} 14.
Nd5 {[%clk 0:02:21.7]} 14... Rf8 {[%clk 0:02:36.7]} 15. c3 {[%clk 0:02:20.2]}
15... Be6 {[%clk 0:02:34.4]} 16. Nd2 {[%clk 0:01:59.6]} 16... Qf7 {[%clk
0:02:31.7]} 17. Nc4 {[%clk 0:01:58.8]} 17... Bb8 {[%clk 0:02:19]} 18. Qf3 {[%clk
0:01:33]} 18... Rd8 {[%clk 0:02:08.1]} 19. Nde3 {[%clk 0:00:57.3]} 19... Rxd3
{[%clk 0:02:05.5]} 20. b3 {[%clk 0:00:36.3]} 20... Rxc3 {[%clk 0:01:55.9]} 21.
Rad1 {[%clk 0:00:30.5]} 21... e4 {[%clk 0:01:54]} 22. Qe2 {[%clk 0:00:29.4]}
22... Nd4 {[%clk 0:01:40.9]} 23. Qb2 {[%clk 0:00:27.3]} 23... Rd3 {[%clk
0:01:38.3]} 24. Rxd3 {[%clk 0:00:26.4]} 24... exd3 {[%clk 0:01:39.2]} 25. Rd1
{[%clk 0:00:22.6]} 25... f4 {[%clk 0:01:36]} 26. Ng4 {[%clk 0:00:16.3]} 26...
fxg3 {[%clk 0:01:32.8]} 27. fxg3 {[%clk 0:00:14]} 27... Ne2+ {[%clk 0:01:25.2]}
28. Kh2 {[%clk 0:00:12.5]} 28... Bxg3+ {[%clk 0:01:22]} 29. Kh1 {[%clk
0:00:12.3]} 29... Bxg4 {[%clk 0:01:15.4]} 30. Rxd3 {[%clk 0:00:09.1]} 30... Be6
{[%clk 0:01:09.9]} 31. Re3 {[%clk 0:00:07.3]} 31... Nf4 {[%clk 0:01:00.7]} 32.
Rxg3 {[%clk 0:00:05.9]} 32... Nxg2 {[%clk 0:01:00.6]} 33. Kxg2 {[%clk
0:00:05.5]} 33... Bxc4 {[%clk 0:00:49.7]} 34. bxc4 {[%clk 0:00:04.3]} 34... Rf8
{[%clk 0:00:50.1]} 35. Qe2 {[%clk 0:00:02.6]} 35... b6 {[%clk 0:00:47.8]} 36.
Re3 {[%clk 0:00:02.1]} 36... Qg6+ {[%clk 0:00:46.2]} 37. Rg3 {[%clk 0:00:02.1]}
37... Qf6 {[%clk 0:00:44.5]} 0-1

[Event "*** Titled Tuesday Blitz"]
[Site "Chess.com"]
[Date "2020.05.05"]
[Round "3"]
[White "ARMQUEEN"]
[Black "RitvarsReimanis"]
[Result "0-1"]
[WhiteElo "2346"]
[BlackElo "2547"]
[TimeControl "180+1"]
[EndTime "10:29:05 PDT"]
[Termination "RitvarsReimanis won by resignation"]

1. e4 {[%clk 0:03:00.9]} 1... c5 {[%clk 0:02:59.9]} 2. Nc3 {[%clk 0:03:00.7]}
2... Nc6 {[%clk 0:02:59.3]} 3. Bb5 {[%clk 0:03:00.6]} 3... Nd4 {[%clk
0:02:56.4]} 4. Bc4 {[%clk 0:03:00.6]} 4... a6 {[%clk 0:02:55.7]} 5. Nf3 {[%clk
0:02:52.5]} 5... Nc6 {[%clk 0:02:55]} 6. a4 {[%clk 0:02:37.5]} 6... Nf6 {[%clk
0:02:47.5]} 7. e5 {[%clk 0:02:34.8]} 7... d5 {[%clk 0:02:43.3]} 8. exf6 {[%clk
0:02:30.9]} 8... dxc4 {[%clk 0:02:42.3]} 9. fxg7 {[%clk 0:02:30.6]} 9... Bxg7
{[%clk 0:02:42.5]} 10. Qe2 {[%clk 0:02:30.9]} 10... Nd4 {[%clk 0:02:37.7]} 11.
Nxd4 {[%clk 0:02:28.7]} 11... cxd4 {[%clk 0:02:27.3]} 12. Ne4 {[%clk 0:02:28.1]}
12... d3 {[%clk 0:02:19.3]} 13. cxd3 {[%clk 0:02:28.1]} 13... cxd3 {[%clk
0:02:17.5]} 14. Qf3 {[%clk 0:02:28.4]} 14... O-O {[%clk 0:02:09.2]} 15. Ra3
{[%clk 0:02:24.1]} 15... Qc7 {[%clk 0:01:50.4]} 16. O-O {[%clk 0:02:23.1]} 16...
Be6 {[%clk 0:01:39.8]} 17. Ng5 {[%clk 0:01:42.2]} 17... Bc4 {[%clk 0:01:15.6]}
18. Qf5 {[%clk 0:01:02.3]} 18... Rfd8 {[%clk 0:01:07.1]} 19. Qxh7+ {[%clk
0:01:01.3]} 19... Kf8 {[%clk 0:01:07.2]} 20. Rc3 {[%clk 0:00:39.2]} 20... Qf4
{[%clk 0:00:57.4]} 21. Nh3 {[%clk 0:00:31.1]} 21... Qg4 {[%clk 0:00:47.2]} 22.
b3 {[%clk 0:00:27.5]} 22... Bd5 {[%clk 0:00:45]} 23. f3 {[%clk 0:00:24.3]} 23...
Qd4+ {[%clk 0:00:34.9]} 24. Kh1 {[%clk 0:00:23.6]} 24... Bc6 {[%clk 0:00:24.4]}
25. Rc4 {[%clk 0:00:23.4]} 25... Qe5 {[%clk 0:00:20.7]} 26. Rg4 {[%clk
0:00:23.4]} 26... Bd7 {[%clk 0:00:19.1]} 27. Rg5 {[%clk 0:00:23.1]} 27... Qf6
{[%clk 0:00:17]} 28. Rg3 {[%clk 0:00:22.9]} 28... Bf5 {[%clk 0:00:17.2]} 29. Ba3
{[%clk 0:00:21.9]} 29... Bxh7 {[%clk 0:00:16.3]} 30. Re1 {[%clk 0:00:20.3]}
30... Re8 {[%clk 0:00:15.4]} 31. Rf1 {[%clk 0:00:19.3]} 31... Kg8 {[%clk
0:00:15.8]} 0-1

[Event "*** Titled Tuesday Blitz"]
[Site "Chess.com"]
[Date "2020.05.05"]
[Round "3"]
[White "GMJustin"]
[Black "S-Fazulyanov"]
[Result "1-0"]
[WhiteElo "2386"]
[BlackElo "2558"]
[TimeControl "180+1"]
[EndTime "10:29:06 PDT"]
[Termination "GMJustin won by checkmate"]

1. e4 {[%clk 0:02:56.3]} 1... c5 {[%clk 0:03:00]} 2. Nf3 {[%clk 0:02:55.3]} 2...
Nc6 {[%clk 0:02:59.5]} 3. Bb5 {[%clk 0:02:54.4]} 3... g6 {[%clk 0:02:58.6]} 4.
O-O {[%clk 0:02:51.6]} 4... Bg7 {[%clk 0:02:58.8]} 5. Nc3 {[%clk 0:02:50.5]}
5... d6 {[%clk 0:02:52.6]} 6. d4 {[%clk 0:02:45.9]} 6... cxd4 {[%clk 0:02:52.6]}
7. Nxd4 {[%clk 0:02:45.1]} 7... Bd7 {[%clk 0:02:53]} 8. Be3 {[%clk 0:02:42.3]}
8... Nf6 {[%clk 0:02:52.5]} 9. Be2 {[%clk 0:02:29.1]} 9... O-O {[%clk
0:02:51.5]} 10. Qd2 {[%clk 0:02:23.6]} 10... Ng4 {[%clk 0:02:44.9]} 11. Bxg4
{[%clk 0:02:20.2]} 11... Bxg4 {[%clk 0:02:45.8]} 12. f3 {[%clk 0:02:16.6]} 12...
Bd7 {[%clk 0:02:40.7]} 13. Nd5 {[%clk 0:02:11.7]} 13... Rc8 {[%clk 0:02:34.2]}
14. Rac1 {[%clk 0:01:32.9]} 14... h5 {[%clk 0:01:54.4]} 15. c4 {[%clk
0:01:27.7]} 15... Kh7 {[%clk 0:01:53.9]} 16. b3 {[%clk 0:01:25.1]} 16... e6
{[%clk 0:01:09.5]} 17. Nxc6 {[%clk 0:01:16.4]} 17... Bxc6 {[%clk 0:00:57.1]} 18.
Nb4 {[%clk 0:01:03.3]} 18... a5 {[%clk 0:00:56.6]} 19. Nxc6 {[%clk 0:00:57.2]}
19... Rxc6 {[%clk 0:00:57.5]} 20. Rfd1 {[%clk 0:00:54.9]} 20... Qc7 {[%clk
0:00:45.6]} 21. Bf4 {[%clk 0:00:48.6]} 21... Rd8 {[%clk 0:00:32.7]} 22. h3
{[%clk 0:00:45.6]} 22... e5 {[%clk 0:00:29.1]} 23. Bg5 {[%clk 0:00:43.5]} 23...
f6 {[%clk 0:00:28]} 24. Be3 {[%clk 0:00:42]} 24... f5 {[%clk 0:00:20.2]} 25.
exf5 {[%clk 0:00:36.9]} 25... gxf5 {[%clk 0:00:21.1]} 26. Qc2 {[%clk 0:00:35.7]}
26... Qf7 {[%clk 0:00:19.7]} 27. Rd5 {[%clk 0:00:33.6]} 27... a4 {[%clk
0:00:18.4]} 28. Rcd1 {[%clk 0:00:25]} 28... axb3 {[%clk 0:00:16.2]} 29. axb3
{[%clk 0:00:24.8]} 29... Bh8 {[%clk 0:00:16.2]} 30. g4 {[%clk 0:00:23.6]} 30...
hxg4 {[%clk 0:00:16.1]} 31. hxg4 {[%clk 0:00:23.5]} 31... Rg8 {[%clk 0:00:16.2]}
32. Qh2+ {[%clk 0:00:17.4]} 32... Kg7 {[%clk 0:00:14.8]} 33. Qh6# {[%clk
0:00:17.1]} 1-0

[Event "*** Titled Tuesday Blitz"]
[Site "Chess.com"]
[Date "2020.05.05"]
[Round "3"]
[White "Grineva_Marianna"]
[Black "aa175"]
[Result "1-0"]
[WhiteElo "2159"]
[BlackElo "2399"]
[TimeControl "180+1"]
[EndTime "10:29:06 PDT"]
[Termination "Grineva_Marianna won by checkmate"]

1. d4 {[%clk 0:03:00.9]} 1... e5 {[%clk 0:02:59]} 2. dxe5 {[%clk 0:02:57.7]}
2... Nc6 {[%clk 0:02:58.6]} 3. Nf3 {[%clk 0:02:55.5]} 3... Qe7 {[%clk
0:02:53.8]} 4. Nc3 {[%clk 0:02:51.4]} 4... Nxe5 {[%clk 0:02:52.8]} 5. e4 {[%clk
0:02:49.3]} 5... Nf6 {[%clk 0:02:52.2]} 6. Bg5 {[%clk 0:02:46.7]} 6... c6 {[%clk
0:02:44]} 7. Bd3 {[%clk 0:02:37.7]} 7... h6 {[%clk 0:02:40.4]} 8. Bf4 {[%clk
0:02:30.3]} 8... Nxf3+ {[%clk 0:02:35.4]} 9. Qxf3 {[%clk 0:02:29.5]} 9... g5
{[%clk 0:02:31.8]} 10. Be3 {[%clk 0:02:26.4]} 10... d6 {[%clk 0:02:27.8]} 11. h3
{[%clk 0:02:25.4]} 11... Bg7 {[%clk 0:02:24.2]} 12. O-O-O {[%clk 0:02:24.2]}
12... Nd7 {[%clk 0:02:17.7]} 13. Ne2 {[%clk 0:02:05.5]} 13... Ne5 {[%clk
0:02:15.5]} 14. Qg3 {[%clk 0:02:05.1]} 14... Be6 {[%clk 0:02:05.4]} 15. a3
{[%clk 0:01:58.9]} 15... O-O-O {[%clk 0:02:00.1]} 16. f4 {[%clk 0:01:58.1]}
16... Nxd3+ {[%clk 0:01:57.5]} 17. Rxd3 {[%clk 0:01:54.2]} 17... Bc4 {[%clk
0:01:56.9]} 18. Rd2 {[%clk 0:01:47]} 18... Qxe4 {[%clk 0:01:51.6]} 19. fxg5
{[%clk 0:01:39.1]} 19... hxg5 {[%clk 0:01:46.5]} 20. Bxg5 {[%clk 0:01:30.3]}
20... Bxe2 {[%clk 0:01:42.2]} 21. Bxd8 {[%clk 0:01:29.7]} 21... Bh6 {[%clk
0:00:52.6]} 22. Bg5 {[%clk 0:01:25.6]} 22... Rg8 {[%clk 0:00:52.5]} 23. h4
{[%clk 0:01:23.5]} 23... f6 {[%clk 0:00:51.1]} 24. Qf2 {[%clk 0:01:18.2]} 24...
fxg5 {[%clk 0:00:36]} 25. Rxe2 {[%clk 0:01:17.8]} 25... gxh4+ {[%clk 0:00:31.3]}
26. Kb1 {[%clk 0:01:17.8]} 26... Qd5 {[%clk 0:00:18.2]} 27. Rxh4 {[%clk
0:01:04.9]} 27... Rf8 {[%clk 0:00:16.4]} 28. Qe1 {[%clk 0:00:58.8]} 28... Qg5
{[%clk 0:00:02.2]} 29. Re8+ {[%clk 0:00:46.2]} 29... Rxe8 {[%clk 0:00:02]} 30.
Qxe8+ {[%clk 0:00:46.9]} 30... Kc7 {[%clk 0:00:02.9]} 31. Qf7+ {[%clk
0:00:45.8]} 31... Kc8 {[%clk 0:00:01.7]} 32. Qe6+ {[%clk 0:00:44.6]} 32... Kc7
{[%clk 0:00:01.9]} 33. Qxh6 {[%clk 0:00:45.1]} 33... Qd5 {[%clk 0:00:01.9]} 34.
Qg7+ {[%clk 0:00:44]} 34... Kb6 {[%clk 0:00:02.1]} 35. Rb4+ {[%clk 0:00:43.7]}
35... Ka5 {[%clk 0:00:02.1]} 36. Qxb7 {[%clk 0:00:42.6]} 36... Qd1+ {[%clk
0:00:02.1]} 37. Ka2 {[%clk 0:00:42.8]} 37... Qd5+ {[%clk 0:00:01.5]} 38. Rb3
{[%clk 0:00:43.2]} 38... a6 {[%clk 0:00:01.6]} 39. Qb4# {[%clk 0:00:43]} 1-0

[Event "*** Titled Tuesday Blitz"]
[Site "Chess.com"]
[Date "2020.05.05"]
[Round "3"]
[White "Mazanchenko_Dmitry"]
[Black "joksijoksi"]
[Result "0-1"]
[WhiteElo "2129"]
[BlackElo "2336"]
[TimeControl "180+1"]
[EndTime "10:29:09 PDT"]
[Termination "joksijoksi won by checkmate"]

1. e4 {[%clk 0:03:00]} 1... c5 {[%clk 0:02:59.7]} 2. Ne2 {[%clk 0:02:59.4]} 2...
e6 {[%clk 0:02:58.9]} 3. Nbc3 {[%clk 0:03:00.3]} 3... a6 {[%clk 0:02:57.7]} 4.
a4 {[%clk 0:02:59.6]} 4... Nc6 {[%clk 0:02:56.2]} 5. g3 {[%clk 0:02:58.6]} 5...
g6 {[%clk 0:02:56.4]} 6. d4 {[%clk 0:02:57.8]} 6... cxd4 {[%clk 0:02:53.1]} 7.
Nxd4 {[%clk 0:02:58.7]} 7... Bg7 {[%clk 0:02:53.7]} 8. Be3 {[%clk 0:02:56.7]}
8... Nge7 {[%clk 0:02:52.1]} 9. Qd2 {[%clk 0:02:51.1]} 9... O-O {[%clk
0:02:50.7]} 10. Nb3 {[%clk 0:02:38]} 10... d5 {[%clk 0:02:21.4]} 11. exd5 {[%clk
0:02:36.7]} 11... Nxd5 {[%clk 0:02:19.1]} 12. Nxd5 {[%clk 0:02:36.1]} 12... exd5
{[%clk 0:01:54.8]} 13. O-O-O {[%clk 0:02:26.6]} 13... Be6 {[%clk 0:01:38]} 14.
Bg2 {[%clk 0:02:12.4]} 14... Ne7 {[%clk 0:01:17.6]} 15. Bc5 {[%clk 0:01:57.7]}
15... Rc8 {[%clk 0:01:02.1]} 16. a5 {[%clk 0:01:43.7]} 16... Qc7 {[%clk
0:00:34.8]} 17. Bb6 {[%clk 0:01:34.1]} 17... Qd7 {[%clk 0:00:32.6]} 18. Nc5
{[%clk 0:01:26.7]} 18... Qb5 {[%clk 0:00:32.5]} 19. b4 {[%clk 0:01:13.8]} 19...
Nc6 {[%clk 0:00:18.7]} 20. c3 {[%clk 0:01:06.4]} 20... Qc4 {[%clk 0:00:12.9]}
21. Na4 {[%clk 0:00:32.3]} 21... Nxb4 {[%clk 0:00:11.5]} 22. Bc5 {[%clk
0:00:22.7]} 22... Rxc5 {[%clk 0:00:07.7]} 23. Nxc5 {[%clk 0:00:23.6]} 23... Qxc5
{[%clk 0:00:08.6]} 24. Kb2 {[%clk 0:00:18.9]} 24... Nc6 {[%clk 0:00:08.9]} 25.
Bxd5 {[%clk 0:00:15.8]} 25... Bxd5 {[%clk 0:00:09.8]} 26. Qxd5 {[%clk
0:00:15.6]} 26... Qxc3+ {[%clk 0:00:10.4]} 27. Kb1 {[%clk 0:00:09.6]} 27... Qb2#
{[%clk 0:00:10.6]} 0-1